[Event "FRA-ch Teams Top 16-A 2022"]
[Site "Chartres"]
[Date "2022.06.10"]
[Round "2.24"]
[White "Auvray, Juliette"]
[Black "Dieuleveut, Floriane"]
[Result "1-0"]
[ECO "B53"]
[WhiteElo "1970"]
[BlackElo "1863"]
[Annotator "TA"]
[PlyCount "107"]
[EventDate "2022.06.09"]
[EventType "team-tourn"]
[EventCountry "FRA"]
[SourceTitle "playchess.com"]
[Source "ChessBase"]
[SourceQuality "1"]
[TimeControl "40/5400+30:1800+30"]

{[%evp 21,107,0,33,20,31,31,38,42,37,43,37,-33,-22,-9,-15,-70,-45,-56,-44,-41,14,0,36,0,0,-1,28,45,186,197,240,178,335,325,318,75,67,65,180,112,160,11,12,31,43,57,97,173,178,145,293,278,240,208,521,514,497,490,434,434,1250,798,650,642,642,592,29964,29960,29965,29966,29966,29969,29969,29970,29981,29982,29982,29981,29981,29982,29982,29983,29983,29984,29984,29985,29990,29991]} 1. e4 {[%emt 0:00:35]} c5 {[%emt 0:00:05]} 2. Nf3 {[%emt 0:00:20]} d6 {[%emt 0:00:18]} 3. d4 {[%emt 0:00:41]} cxd4 {[%emt 0:00:11]} 4. Qxd4 {[%emt 0:00:34]} Nc6 {[%emt 0:01:49]} 5. Bb5 {[%emt 0:00:56]} Bd7 {[%emt 0:01:35]} 6. Bxc6 {[%emt 0:00:23]} Bxc6 {[%emt 0:00:32]} 7. Nc3 {[%emt 0:01:23]} Nf6 {[%emt 0:02:55]} 8. Bg5 {[%emt 0:00:34]} e6 {[%emt 0:01:54]} 9. O-O-O {[%emt 0:03:40]} Be7 {[%emt 0:02:53]} 10. Qd3 $1 {[%emt 0:01:15][%mdl 4] is now more promising than 10.Rhe1.} Qa5 {[%emt 0:03:26]} 11. h4 {[%emt 0:02:52]} O-O {[%emt 0:07:06]} 12. Nd4 {[%emt 0:01:18] Prevents b5. B53: Sicilian: 2...d6: Lines with Qxd4.} a6 {[%emt 0:08:52]} 13. f4 {[%emt 0:08:15] [#]} Qc7 $146 {[%emt 0:12:54]} ({Predecessor:} 13... Rac8 14. f5 h6 15. Kb1 Bd7 16. g4 exf5 17. e5 dxe5 18. Nb3 Bb5 19. Qxf5 Qb6 20. Bxf6 Qxf6 {½-½ (41) Simal Moreira,L (2359)-Marez,S (2377) ICCF email 2017}) 14. f5 {[%emt 0:25:09] White is slightly better.} Bd7 {[%emt 0:05:45]} 15. g4 {[%emt 0:17:07]} b5 {[%emt 0:06:42][%cal Bb7b5,Bb5b4][%mdl 32]} 16. Bxf6 {[%emt 0:06:48]} ({White should try} 16. a3 $14) 16... Bxf6 $15 {[%emt 0:01:21]} 17. g5 {[%emt 0:02:11]} Be5 {[%emt 0:04:00]} 18. f6 {[%emt 0:17:37]} (18. Kb1 $11) 18... b4 {[%emt 0:04:42]} 19. fxg7 {[%emt 0:03:16]} Rfc8 {[%emt 0:04:40]} 20. Nce2 {[%emt 0:02:19]} Qa5 {[%emt 0:06:24]} (20... Bb5 $15 21. Nxb5 axb5) 21. Kb1 $1 $11 {[%emt 0:01:44][%cal Og5g6]} Bb5 {[%emt 0:02:55]} (21... Kxg7 22. h5) 22. Nxb5 {[%emt 0:00:40]} axb5 {[%emt 0:00:27]} 23. Qb3 {[%emt 0:00:21][%cal Og5g6] Active counter play!} Rc6 {[%emt 0:05:15]} 24. h5 {[%emt 0:00:31][%cal Og5g6] g6! is the strong threat.} ({Wrong is} 24. Nd4 $2 Rca6 25. Rh3 Qxa2+ 26. Qxa2 Rxa2 $19) 24... Rca6 {[%emt 0:03:42] [#]} (24... Kxg7 $14 25. Nc1 Rc4) 25. Nc1 $1 $18 {[%emt 0:00:30][%cal Og5g6] Threatens to win with g6!} Kxg7 {[%emt 0:05:10]} 26. Rdf1 {[%emt 0:00:51][%cal Og5g6]} R6a7 $2 {[%emt 0:02:50]} (26... Qa4) 27. g6 $1 {[%emt 0:00:35]} Qa4 {[%emt 0:01:08]} 28. gxf7 $2 {[%emt 0:01:20]} (28. h6+ $18 {is the precise move to win.} Kh8 29. gxf7) 28... Qxb3 $16 {[%emt 0:01:35]} 29. cxb3 {[%emt 0:00:33] Really sharp!} ({Much worse is} 29. Nxb3 Rxf7 30. h6+ Kf8 $11) 29... Bf6 {[%emt 0:02:06]} ({Black should play} 29... Kf8 $14) 30. Rf3 {[%emt 0:00:34]} ({Better is} 30. Rh2 $18 Rxf7 31. Rg2+ Kf8 32. Rgf2) 30... Rxf7 {[%emt 0:00:51] [#]} (30... Bd4 $142) 31. Rhf1 {[%emt 0:00:31]} (31. Rg1+ $1 $16 Kh8 32. Rgf1) 31... Raf8 $1 $11 {[%emt 0:01:00]} 32. Nd3 $36 {[%emt 0:00:08][%mdl 2048] White has the initiative.} Bg5 {[%emt 0:00:37]} 33. Rxf7+ {[%emt 0:00:21]} Rxf7 {[%emt 0:00:04] White now steadily converts the win.} 34. Rxf7+ {[%emt 0:00:47]} Kxf7 {[%emt 0:00:03]} 35. Nxb4 $14 {[%emt 0:00:32][%mdl 4096] Endgame And now Nc6 would win. KB-KN} Kf6 {[%emt 0:01:31]} (35... Kg7 $16 {was necessary.}) 36. Kc2 {[%emt 0:00:32]} Be3 {[%emt 0:00:35]} 37. Kd3 {[%emt 0:00:21]} Bb6 {[%emt 0:00:29]} (37... Bg1 38. a4 Kg5) 38. a4 $18 {[%emt 0:00:34] Strongly threatening Nc6.} Kg5 {[%emt 0:00:21]} 39. Nc6 {[%emt 0:00:19] Black must now prevent a5.} Kxh5 {[%emt 0:00:41]} 40. a5 {[%emt 0:00:41]} Bg1 {[%emt 0:00:24]} (40... Bxa5 $142 41. Nxa5 Kg4) 41. a6 {[%emt 0:09:16]} Bb6 {[%emt 0:07:17]} 42. a7 {[%emt 0:18:51]} Bxa7 {[%emt 0:00:13]} 43. Nxa7 {[%emt 0:00:05] KN-KP} b4 {[%emt 0:03:38]} 44. Nc6 {[%emt 0:01:53] White mates.} Kg4 {[%emt 0:03:19]} 45. Ke3 {[%emt 0:02:07]} h5 {[%emt 0:02:44]} 46. Nxb4 {[%emt 0:00:19] KN-K3P} h4 {[%emt 0:01:06]} 47. Nd3 {[%emt 0:01:05]} Kg3 {[%emt 0:04:52]} 48. Nf2 {[%emt 0:00:40]} d5 {[%emt 0:00:30]} 49. exd5 {[%emt 0:00:23]} exd5 {[%emt 0:00:04]} 50. b4 {[%emt 0:00:18][%cal Bb3b4,Bb4b5,Bb5b6][%mdl 32]} d4+ {[%emt 0:00:10]} 51. Ke2 {[%emt 0:00:18]} Kf4 {[%emt 0:00:25]} 52. b5 {[%emt 0:00:45]} Ke5 {[%emt 0:00:37]} 53. Kd3 {[%emt 0:00:39]} Kf4 {[%emt 0:00:42]} 54. b6 {[%emt 0:00:32] Weighted Error Value: White=0.23 (precise) /Black=0.51} 1-0

[Event "FRA-ch Teams Top 16-A 2022"]
[Site "Chartres"]
[Date "2022.06.10"]
[Round "2.25"]
[White "Piorun, Kacper"]
[Black "Mamedov, Rauf"]
[Result "1/2-1/2"]
[ECO "D10"]
[WhiteElo "2635"]
[BlackElo "2656"]
[Annotator "TA"]
[PlyCount "35"]
[EventDate "2022.06.09"]
[EventType "team-tourn"]
[EventCountry "FRA"]
[SourceTitle "playchess.com"]
[Source "ChessBase"]
[SourceQuality "1"]
[TimeControl "40/5400+30:1800+30"]

{[%evp 10,35,33,27,20,29,25,26,20,21,26,25,42,23,25,24,23,31,21,0,0,0,0,0,0,0,0,0]} 1. d4 {[%emt 0:00:04]} d5 {[%emt 0:00:16]} 2. c4 {[%emt 0:00:07]} c6 {[%emt 0:00:02]} 3. Nc3 {[%emt 0:00:12]} Nf6 {[%emt 0:00:04]} 4. e3 {[%emt 0:00:07]} Bf5 {[%emt 0:00:05]} 5. cxd5 {[%emt 0:02:05]} cxd5 {[%emt 0:00:29]} 6. Qb3 {[%emt 0:00:05]} Nc6 $1 {[%emt 0:00:02][%mdl 4] is recently more successful than 6...Bc8. D10: Slav Defence: 3 cxd5 (without early Nf3) and 3 Nc3.} 7. Qxb7 {[%emt 0:00:09]} Bd7 $1 {[%emt 0:00:02] [#] Threatens to win with ...Rb8.} 8. Qb3 {[%emt 0:00:08]} Rb8 {[%emt 0:00:07] White has an edge.} 9. Qd1 {[%emt 0:00:05]} e5 {[%emt 0:00:05]} 10. dxe5 {[%emt 0:00:07]} Nxe5 {[%emt 0:00:02]} 11. Be2 {[%emt 0:01:33]} Bd6 {[%emt 0:00:53]} 12. Nf3 {[%emt 0:00:06]} Nxf3+ {[%emt 0:00:05]} 13. Bxf3 {[%emt 0:00:12]} Qc7 {[%emt 0:00:01] [#]} 14. g3 $1 $146 {[%emt 0:17:45][%mdl 8] The position is equal. An important novelty.} ({Predecessor:} 14. h3 O-O 15. O-O Rfd8 16. Qd3 Bh2+ 17. Kh1 Be5 18. Rd1 Be6 19. Nb5 Qd7 20. Nd4 Bxh3 {½-½ (62) Rustemov,A (2525)-Matlakov,M (2671) Chess.com INT 2022}) 14... Bh3 $1 {[%emt 0:00:41]} 15. Qa4+ $1 {[%emt 0:00:24]} Bd7 {[%emt 0:00:04]} 16. Qd1 {[%emt 0:03:06]} Bh3 {[%emt 0:00:05] White must now prevent ...0-0.} 17. Qa4+ $1 {[%emt 0:02:48]} Bd7 {[%emt 0:03:41]} 18. Qd1 {[%emt 0:02:28] Weighted Error Value: White=0.03 (flawless) /Black=0.00 (flawless)} 1/2-1/2

[Event "FRA-ch Teams Top 16-A 2022"]
[Site "Chartres"]
[Date "2022.06.10"]
[Round "2.26"]
[White "Lagarde, Maxime"]
[Black "Malakhov, Vladimir"]
[Result "1-0"]
[ECO "D13"]
[WhiteElo "2628"]
[BlackElo "2652"]
[Annotator "TA"]
[PlyCount "56"]
[EventDate "2022.06.09"]
[EventType "team-tourn"]
[EventCountry "FRA"]
[SourceTitle "playchess.com"]
[Source "ChessBase"]
[SourceQuality "1"]
[TimeControl "40/5400+30:1800+30"]

{[%evp 16,56,28,38,31,16,14,16,23,11,27,24,31,23,27,24,21,0,7,0,0,3,17,4,6,0,43,73,208,207,194,204,207,205,368,416,337,310,609,607,4890,2870,1346]} 1. d4 {[%emt 0:00:01]} d5 {[%emt 0:00:09]} 2. c4 {[%emt 0:00:04]} c6 {[%emt 0:00:04]} 3. cxd5 {[%emt 0:00:02]} cxd5 {[%emt 0:00:05]} 4. Bf4 {[%emt 0:00:03]} Nc6 {[%emt 0:00:54]} 5. e3 {[%emt 0:00:04]} Nf6 {[%emt 0:00:28]} 6. Nc3 {[%emt 0:00:04]} e6 {[%emt 0:00:59]} 7. Bd3 {[%emt 0:00:29]} Be7 {[%emt 0:00:07]} 8. h3 {[%emt 0:00:06]} O-O {[%emt 0:00:06]} 9. Nf3 {[%emt 0:00:04]} Bd6 {[%emt 0:00:50] D13: Slav Defence: Exchange variation without ...Bf5.} 10. O-O {[%emt 0:01:00]} Bxf4 {[%emt 0:06:02]} 11. exf4 {[%emt 0:00:26]} Qd6 {[%emt 1:26:16] The position is equal.} 12. Qd2 {[%emt 0:05:47]} (12. Ne5 {keeps more tension.} Bd7 13. a3 Rac8 14. Rc1) 12... Bd7 {[%emt 0:00:00] [#]} 13. Rac1 $146 {[%emt 1:28:50]} ({Predecessor:} 13. Rad1 Rac8 14. Rfe1 a6 15. Bb1 Na5 16. Ne5 Nc4 17. Qc2 g6 18. g4 b5 19. a3 a5 20. Qb3 Rb8 21. Ne2 Rfc8 22. Qg3 Nxb2 23. Qh4 Kg7 {½-½ (23) Maisuradze,N (2200)-Roeder,M (2376) San Sebastian 2018}) 13... Rac8 {[%emt 0:00:00]} 14. Rfe1 {[%emt 0:00:30]} a6 {[%emt 0:01:30]} 15. Ne5 {[%emt 0:00:00]} Rc7 {[%emt 0:00:30]} 16. Re3 {[%emt 0:00:00]} Rfc8 {[%emt 0:00:00]} 17. Rce1 {[%emt 0:01:30]} Nxd4 {[%emt 0:01:00]} 18. Bxh7+ $1 {[%emt 0:00:30]} Kxh7 {[%emt 0:00:00]} 19. Qxd4 {[%emt 0:00:00]} Qc5 {[%emt 0:01:00]} 20. Qd2 {[%emt 0:01:00] Hoping for Rg3.} Be8 {[%emt 0:00:30] White must now prevent ...d4.} 21. Ng4 {[%emt 0:00:30]} d4 {[%emt 0:00:00] Black cannot hold the game after this.} (21... Ne4 $16 {was called for.} 22. Nxe4 dxe4) 22. Re5 $18 {[%emt 0:00:00]} Qe7 {[%emt 0:00:00]} (22... Qc4 $2 23. Nxf6+ gxf6 24. Rh5+ Kg8 {[#]} 25. f5 $1 $18) 23. Qxd4 {[%emt 0:00:00]} Rc4 {[%emt 0:00:00]} 24. Qd3+ {[%emt 0:00:00]} g6 $2 {[%emt 0:00:00]} (24... Kg8 25. Nxf6+ Qxf6) 25. f5 {[%emt 0:00:00]} Nxg4 {[%emt 0:00:00]} 26. fxg6+ {[%emt 0:00:00][%mdl 64] [#] Deflection} fxg6 $2 {[%emt 0:00:00]} (26... Kg7) 27. Rxe6 {[%emt 0:00:00]} Qh4 {[%emt 0:03:30]} 28. Re7+ {[%emt 0:00:00]} Kh6 {[%emt 0:00:00] Weighted Error Value: White=0.05 (flawless) /Black=0.34} 1-0

[Event "FRA-ch Teams Top 16-A 2022"]
[Site "Chartres"]
[Date "2022.06.10"]
[Round "2.27"]
[White "Van Foreest, Lucas"]
[Black "Tiviakov, Sergei"]
[Result "1/2-1/2"]
[ECO "D00"]
[WhiteElo "2572"]
[BlackElo "2567"]
[Annotator "TA"]
[PlyCount "129"]
[EventDate "2022.06.09"]
[EventType "team-tourn"]
[EventCountry "FRA"]
[SourceTitle "playchess.com"]
[Source "ChessBase"]
[SourceQuality "1"]
[TimeControl "40/5400+30:1800+30"]

{[%evp 9,129,3,9,4,16,0,0,0,13,11,23,14,51,18,59,37,58,68,57,34,105,70,59,52,72,39,38,31,48,39,37,37,37,45,62,61,61,74,68,67,63,67,95,66,62,46,47,40,47,39,39,48,77,20,82,64,76,57,61,56,82,82,82,82,83,78,81,77,94,94,109,95,101,91,101,75,94,94,120,45,45,45,47,45,33,33,36,24,24,21,21,0,20,0,32,14,14,14,18,14,32,0,0,0,0,0,0,0,0,0,0,0,0,0,0,0,0,0,0,0,0,0]} 1. d4 {[%emt 0:00:20]} Nf6 {[%emt 0:00:06]} 2. Bg5 {[%emt 0:00:42]} d5 {[%emt 0:00:09]} 3. e3 {[%emt 0:00:51]} c5 {[%emt 0:01:21]} 4. Bxf6 {[%emt 0:00:10]} gxf6 {[%emt 0:00:05]} 5. dxc5 {[%emt 0:00:27]} e6 {[%emt 0:01:56]} 6. Nf3 {[%emt 0:02:52] D00: 1 d4 d5: Unusual lines.} Nc6 {[%emt 0:00:48]} 7. Be2 {[%emt 0:01:34]} Bxc5 {[%emt 0:03:45]} 8. O-O {[%emt 0:01:20]} O-O {[%emt 0:00:10]} 9. c4 {[%emt 0:00:08]} dxc4 {[%emt 0:01:16]} 10. Qa4 {[%emt 0:00:26] [#]} Bd7 $146 {[%emt 0:08:52]} ({Predecessor:} 10... f5 11. Qxc4 Bb6 12. Nc3 Qf6 13. Rfd1 Rd8 14. Rxd8+ Qxd8 15. Rd1 Qe7 16. e4 fxe4 17. Qxe4 {½-½ (46) Swiercz,D (2665)-Vidit,S (2723) Chess.com INT 2022}) 11. Qxc4 {[%emt 0:00:17]} Be7 {[%emt 0:00:09]} 12. Rd1 {[%emt 0:02:38]} Rc8 {[%emt 0:00:39]} 13. Nc3 {[%emt 0:01:26]} Kh8 {[%emt 0:11:55]} 14. Rd2 {[%emt 0:11:06]} Nb8 {[%emt 0:04:10]} (14... Ne5 $14 15. Qh4 Rg8) 15. Qh4 {[%emt 0:01:22] White is much more active. The black rooks are badly placed.} Rg8 {[%emt 0:01:56]} 16. Rad1 {[%emt 0:02:14]} a6 {[%emt 0:01:37] Against Bb5} 17. Ne4 {[%emt 0:18:48]} f5 {[%emt 0:19:05][%csl LRe4,LRh4] [#]} 18. Qh5 {[%emt 0:13:32][%cal Of3e5] Threatens to win with Ne5!} f6 {[%emt 0:00:35] Prevents Ne5.} (18... fxe4 19. Ne5) 19. Nd6 {[%emt 0:03:45]} Bxd6 {[%emt 0:00:08]} 20. Rxd6 {[%emt 0:00:03]} Qe7 {[%emt 0:00:05] Against Qf7} 21. R6d2 {[%emt 0:03:09]} Ba4 {[%emt 0:04:12]} 22. b3 {[%emt 0:00:13]} Bc6 {[%emt 0:00:27]} 23. g3 {[%emt 0:00:21]} Be8 {[%emt 0:00:57]} 24. Qh6 {[%emt 0:00:41]} Nc6 {[%emt 0:01:09]} 25. Qf4 {[%emt 0:00:35]} Rg7 {[%emt 0:05:17]} 26. h3 {[%emt 0:01:38]} Rc7 {[%emt 0:04:41]} 27. Qh4 {[%emt 0:02:20]} Rd7 {[%emt 0:06:44]} 28. e4 {[%emt 0:01:22]} Rxd2 {[%emt 0:04:48]} 29. Rxd2 {[%emt 0:00:04]} fxe4 {[%emt 0:00:24]} 30. Qxe4 {[%emt 0:00:06]} Bd7 {[%emt 0:00:37]} 31. Nd4 {[%emt 0:05:42]} (31. Qe3 $16) 31... Nxd4 {[%emt 0:08:07]} (31... e5 $11 {keeps the balance.} 32. Nxc6 Bxc6) 32. Qxd4 $16 {[%emt 0:01:08]} ({Of course not} 32. Rxd4 e5 33. Rd3 Bc6 $11) 32... Bc6 $1 {[%emt 0:06:09]} 33. Qe3 {[%emt 0:01:05]} Rg5 {[%emt 0:00:46]} 34. Bf3 {[%emt 0:00:14] Hoping for Bxc6.} Rc5 {[%emt 0:01:37]} 35. Bxc6 {[%emt 0:00:22]} Rxc6 {[%emt 0:00:01][%mdl 4096] Endgame KQR-KQR} 36. Qf3 {[%emt 0:00:19]} Rc1+ {[%emt 0:01:25]} 37. Kg2 {[%emt 0:00:35][%cal Od2d6]} Kg7 {[%emt 0:02:52]} 38. Rd4 {[%emt 0:00:03]} (38. Qf4 {with more complications.} h5 39. Rd6 e5 40. Qd2) 38... Rc5 {[%emt 0:00:00]} 39. Qg4+ {[%emt 0:00:36]} Kf8 {[%emt 0:00:08]} 40. Qd1 {[%emt 0:00:09] aiming for Rd8+.} Ke8 {[%emt 0:00:37] Inhibits Rd8+.} 41. b4 {[%emt 0:30:01]} Rc7 {[%emt 0:01:43]} 42. a3 {[%emt 0:00:00]} e5 {[%emt 0:07:36]} 43. Rd5 {[%emt 0:00:00]} Rd7 {[%emt 0:01:05] [#]} 44. Kf3 {[%emt 0:00:00]} ({White should play} 44. g4 $1 $16) 44... f5 $14 {[%emt 0:01:53]} 45. Kg2 {[%emt 0:00:00]} Kd8 {[%emt 0:03:48]} 46. Qd2 {[%emt 0:00:00]} Rxd5 {[%emt 0:00:09]} 47. Qxd5+ {[%emt 0:00:00] KQ-KQ} Kc7 {[%emt 0:00:05]} 48. Qc4+ {[%emt 0:00:00]} Kd7 {[%emt 0:01:13]} 49. Qd3+ {[%emt 0:00:00]} Ke6 {[%emt 0:00:06]} 50. Qc4+ {[%emt 0:00:00]} Kd7 {[%emt 0:00:08]} 51. Qd5+ {[%emt 0:00:00]} Kc7 {[%emt 0:00:08]} 52. g4 {[%emt 0:00:00]} fxg4 {[%emt 0:00:48]} 53. hxg4 {[%emt 0:00:00]} Qf6 {[%emt 0:10:03]} 54. f3 {[%emt 0:00:00]} h6 {[%emt 0:00:15]} 55. Kf2 {[%emt 0:00:00]} Qb6+ {[%emt 0:02:01] The position is equal.} 56. Ke2 {[%emt 0:00:00]} Qb5+ {[%emt 0:02:55]} 57. Qxb5 {[%emt 0:00:00]} axb5 $11 {[%emt 0:00:02] KP-KP} 58. Ke3 {[%emt 0:00:00] White wants to mate with Ke4.} Kd6 {[%emt 0:00:02]} 59. Ke4 {[%emt 0:00:00] Threatening mate with Kf5.} Ke6 {[%emt 0:00:04]} 60. f4 {[%emt 0:00:00]} exf4 {[%emt 0:00:04]} 61. Kxf4 {[%emt 0:00:00]} Kf6 {[%emt 0:00:04]} 62. Ke4 {[%emt 0:00:00]} Kg5 {[%emt 0:00:05]} 63. Kf3 {[%emt 0:00:00]} Kg6 {[%emt 0:00:08]} 64. Ke4 {[%emt 0:00:00]} Kg5 {[%emt 0:00:05]} 65. Kf3 {[%emt 0:00:00] Weighted Error Value: White=0.10 (very precise) /Black=0.10 (very precise)} 1/2-1/2

[Event "FRA-ch Teams Top 16-A 2022"]
[Site "Chartres"]
[Date "2022.06.10"]
[Round "2.28"]
[White "Kamsky, Gata"]
[Black "Flom, Gabriel"]
[Result "1-0"]
[ECO "D00"]
[WhiteElo "2661"]
[BlackElo "2442"]
[Annotator "TA"]
[PlyCount "121"]
[EventDate "2022.06.09"]
[EventType "team-tourn"]
[EventCountry "FRA"]
[SourceTitle "playchess.com"]
[Source "ChessBase"]
[SourceQuality "1"]
[TimeControl "40/5400+30:1800+30"]

{[%evp 9,121,0,12,15,15,9,18,18,13,10,6,9,14,14,12,0,9,0,0,0,0,0,0,0,7,-8,-4,-4,0,0,17,18,19,16,31,17,20,10,31,16,32,41,29,40,27,42,37,41,27,34,27,22,35,33,32,19,47,38,58,1,10,0,39,40,51,52,37,54,81,80,95,88,92,23,186,52,60,18,66,0,25,0,0,0,201,197,347,328,402,386,306,81,268,228,202,182,250,0,8,8,8,8,108,8,25,-133,550,18,18,0,12,0,0,0]} 1. d4 {[%emt 0:00:05]} Nf6 {[%emt 0:04:40]} 2. Bf4 {[%emt 0:00:38]} d5 {[%emt 0:00:19]} 3. e3 {[%emt 0:00:09]} c5 {[%emt 0:01:17]} 4. c3 {[%emt 0:00:07]} Nc6 {[%emt 0:06:28]} 5. Nd2 {[%emt 0:00:55]} cxd4 {[%emt 0:06:08]} 6. exd4 {[%emt 0:00:07] D00: 1 d4 d5: Unusual lines.} Bf5 {[%emt 0:00:06]} 7. Qb3 {[%emt 0:03:52]} Qc8 {[%emt 0:00:02]} 8. Ngf3 {[%emt 0:00:28]} e6 {[%emt 0:00:04]} 9. Be2 {[%emt 0:00:26]} h6 {[%emt 0:01:25]} 10. O-O {[%emt 0:00:49]} Be7 {[%emt 0:00:02]} 11. Ne5 {[%emt 0:11:33]} O-O {[%emt 0:03:49]} 12. a4 {[%emt 0:02:24]} Nd7 {[%emt 0:13:22] [#]} 13. Nef3 $146 {[%emt 0:09:57]} ({Predecessor:} 13. Ndf3 a6 14. Rfc1 Be4 15. Qd1 Ndxe5 16. Nxe5 Nxe5 17. dxe5 f6 18. exf6 Bxf6 19. Be3 {½-½ (36) Kamsky,G (2762)-Fressinet,L (2700) Beijing 2012}) 13... Bd8 {[%emt 0:05:38]} 14. Rfe1 {[%emt 0:02:10]} Bc7 {[%emt 0:00:05]} 15. Bg3 {[%emt 0:01:08]} Bxg3 {[%emt 0:00:29]} 16. hxg3 {[%emt 0:00:05]} Qc7 {[%emt 0:00:12]} 17. Bb5 {[%emt 0:01:07]} a6 {[%emt 0:05:10] Threatens to win with ...Na5.} 18. Bf1 {[%emt 0:00:55]} Rfe8 {[%emt 0:06:55]} 19. Qa3 {[%emt 0:02:08]} e5 {[%emt 0:01:43]} 20. dxe5 {[%emt 0:00:10]} Ncxe5 {[%emt 0:01:39]} 21. a5 {[%emt 0:03:06]} Nxf3+ {[%emt 0:06:25]} 22. Nxf3 {[%emt 0:00:09]} Be4 {[%emt 0:00:08]} 23. Nd4 {[%emt 0:01:39]} Ne5 {[%emt 0:03:37]} 24. b4 {[%emt 0:05:35]} Nc4 {[%emt 0:01:47]} 25. Bxc4 {[%emt 0:03:49]} dxc4 {[%emt 0:04:10]} 26. Re3 $1 {[%emt 0:00:49]} Bd3 {[%emt 0:01:41] White must now prevent ...Rxe3.} 27. Rae1 {[%emt 0:00:35]} Rxe3 {[%emt 0:00:37]} 28. Rxe3 {[%emt 0:00:05]} Qd7 {[%emt 0:00:10]} 29. Qc1 {[%emt 0:06:25]} Re8 {[%emt 0:00:03]} 30. f3 {[%emt 0:03:56]} Qa4 {[%emt 0:06:33]} 31. Rxe8+ {[%emt 0:03:13]} Qxe8 $14 {[%emt 0:00:02][%mdl 4096] Endgame KQB-KQN} 32. Kf2 {[%emt 0:00:13]} Qa4 {[%emt 0:00:18]} 33. g4 {[%emt 0:00:18]} Kh7 {[%emt 0:01:19]} 34. Kg3 {[%emt 0:05:52]} (34. Qe1 $14) 34... Qe8 $1 $11 {[%emt 0:01:36]} 35. Kf2 {[%emt 0:00:35]} Qa4 {[%emt 0:00:17]} 36. Qe1 Qa2+ {[%emt 0:00:30]} 37. Kg3 Qb2 {[%emt 0:00:30]} 38. f4 Qa3 {[%emt 0:00:30]} 39. Nf3 Qb2 {[%emt 0:00:30]} 40. g5 h5 {[%emt 0:00:30]} 41. Nd4 ({White should try} 41. Kh2 $16) 41... g6 $2 {[%emt 0:30:30]} (41... Kg6 $11) 42. Nf3 (42. Kh2 $1 $18) 42... Bf5 $1 $14 {[%emt 0:00:30]} 43. Qe3 (43. Kh2 $5 {[%cal Re1e7]}) 43... Qa1 {[%emt 0:00:30]} (43... Kg8 $11) 44. Qe1 Qb2 {[%emt 0:00:30]} 45. Nd4 h4+ {[%emt 0:00:30]} 46. Kf3 h3 $2 {[%emt 0:00:30]} (46... Kg8 $11 {and Black has nothing to worry.}) 47. gxh3 $18 Bxh3 {[%emt 0:00:30] [#]} (47... Bd3 $142) 48. Ke4 $1 {aiming for Qh4+.} Qg2+ {[%emt 0:00:30]} 49. Ke5 Qg4 {[%emt 0:00:30]} 50. Qe3 $2 (50. Qh1 $18) 50... Bg2 {[%emt 0:00:30]} ({Reject} 50... Qd7 $6 51. Qf2 $11 (51. Qe2 Bf5 $11)) (50... Qc8 $16 {was necessary.} 51. Qe4 Kg8) 51. Kd6 {Strongly threatening Kc7.} Qc8 {[%emt 0:00:30] ( -> ...Qd8+)} 52. Qe7 {Prevents Qd8+.} Qb8+ {[%emt 0:00:30]} (52... Kg8 $142 53. Qc7 Qf8+ 54. Kd7 Bh1 55. Qxc4 Kh8) 53. Kc5 $2 (53. Qc7 $18 Qe8 54. Kc5) 53... Qxf4 {[%emt 0:00:30]} 54. Kxc4 Kg8 $1 {[%emt 0:00:30]} 55. Kc5 Qd2 {[%emt 0:00:30]} (55... Qb8 $1 $11 {keeps the balance.}) 56. c4 (56. Qe8+ $16 Kg7 57. Qe5+ Kh7 58. c4) 56... Bh1 {[%emt 0:00:30]} 57. Qc7 $2 (57. Qe8+ $11 Kg7 58. Qe5+ Kg8 59. Qg3) 57... Kg7 $2 {[%emt 0:00:30][%mdl 8192] [#]} (57... Qxg5+ $17 {and life is bright.} 58. Kb6 Qf6+ 59. Kc5 Kg7) 58. Qe5+ $2 ({Only move:} 58. Ne6+ $1 $18 Kg8 59. Qd8+ Qxd8 60. Nxd8) 58... Kg8 $1 $11 {[%emt 0:00:30] The position is equal.} 59. Ne2 Qd7 {[%emt 0:00:30]} 60. Nf4 Qc8+ {[%emt 0:00:30]} 61. Kd4 {[%mdl 32768] Weighted Error Value: White=0.41/Black=0.36. Sensor Board Error (Ke4/e5)?} 1-0